[Event "*** Titled Tuesday Blitz"]
[Site "Chess.com"]
[Date "2018.12.04"]
[Round "3"]
[White "ruvat"]
[Black "Godzillator"]
[Result "1-0"]
[WhiteElo "2306"]
[BlackElo "2372"]
[TimeControl "180+2"]
[EndTime "13:39:43 PST"]
[Termination "ruvat won by resignation"]

1. d4 {[%clk 0:03:01.9]} 1... d5 {[%clk 0:03:00.6]} 2. Nf3 {[%clk 0:03:01.5]}
2... Nf6 {[%clk 0:03:00.9]} 3. c4 {[%clk 0:03:02.1]} 3... c6 {[%clk 0:03:02]} 4.
Qc2 {[%clk 0:03:02.3]} 4... dxc4 {[%clk 0:03:02.3]} 5. Qxc4 {[%clk 0:03:04.2]}
5... Bf5 {[%clk 0:03:03.6]} 6. g3 {[%clk 0:03:04.6]} 6... e6 {[%clk 0:03:04.3]}
7. Bg2 {[%clk 0:03:06]} 7... Be7 {[%clk 0:03:05.7]} 8. O-O {[%clk 0:03:07.3]}
8... O-O {[%clk 0:03:07.2]} 9. Qb3 {[%clk 0:03:07.3]} 9... Qb6 {[%clk
0:03:06.2]} 10. Nbd2 {[%clk 0:03:08.1]} 10... Nbd7 {[%clk 0:03:01.3]} 11. Nc4
{[%clk 0:03:08.6]} 11... Qxb3 {[%clk 0:03:02.1]} 12. axb3 {[%clk 0:03:10.5]}
12... Be4 {[%clk 0:02:58.7]} 13. Bf4 {[%clk 0:03:03.7]} 13... Nd5 {[%clk
0:02:52]} 14. Rfc1 {[%clk 0:02:59.2]} 14... Nxf4 {[%clk 0:02:52.1]} 15. gxf4
{[%clk 0:02:59.3]} 15... Bd5 {[%clk 0:02:48.5]} 16. Nfe5 {[%clk 0:02:57.4]}
16... Nf6 {[%clk 0:02:42.6]} 17. Na5 {[%clk 0:02:46.2]} 17... Rfb8 {[%clk
0:02:34.9]} 18. Nd3 {[%clk 0:02:29.7]} 18... Bxg2 {[%clk 0:02:32.7]} 19. Kxg2
{[%clk 0:02:29.8]} 19... Nd5 {[%clk 0:02:24.7]} 20. e3 {[%clk 0:02:29.5]} 20...
Bd8 {[%clk 0:02:21.8]} 21. Nc4 {[%clk 0:02:28.3]} 21... Bc7 {[%clk 0:02:22.9]}
22. Kf3 {[%clk 0:02:22.8]} 22... a6 {[%clk 0:02:23.5]} 23. Nce5 {[%clk
0:02:18.3]} 23... Bxe5 {[%clk 0:02:18.3]} 24. Nxe5 {[%clk 0:02:12.5]} 24... Rd8
{[%clk 0:02:14.3]} 25. Nd3 {[%clk 0:02:09.1]} 25... Rab8 {[%clk 0:02:13.5]} 26.
Rc4 {[%clk 0:02:05.9]} 26... Nb6 {[%clk 0:02:14.1]} 27. Rc2 {[%clk 0:02:02.2]}
27... Nd7 {[%clk 0:02:14.5]} 28. b4 {[%clk 0:01:57.6]} 28... f6 {[%clk 0:02:14]}
29. Ra5 {[%clk 0:01:57.8]} 29... Kf7 {[%clk 0:02:13.9]} 30. Rc1 {[%clk
0:01:53.2]} 30... Nb6 {[%clk 0:02:14.5]} 31. b3 {[%clk 0:01:50.1]} 31... Rd6
{[%clk 0:02:05.6]} 32. Rac5 {[%clk 0:01:48.9]} 32... Rbd8 {[%clk 0:02:02.2]} 33.
Ra5 {[%clk 0:01:48]} 33... Nd7 {[%clk 0:01:57.9]} 34. Nc5 {[%clk 0:01:46.6]}
34... Nxc5 {[%clk 0:01:59.1]} 35. bxc5 {[%clk 0:01:46.7]} 35... R6d7 {[%clk
0:01:58.2]} 36. Ra4 {[%clk 0:01:29.7]} 36... e5 {[%clk 0:01:58.3]} 37. fxe5
{[%clk 0:01:29.8]} 37... fxe5 {[%clk 0:01:59.6]} 38. Rd1 {[%clk 0:01:14.7]}
38... Ke6 {[%clk 0:01:56.1]} 39. Rc4 {[%clk 0:01:11.4]} 39... exd4 {[%clk
0:01:51.5]} 40. Rcxd4 {[%clk 0:00:54.3]} 40... Rd5 {[%clk 0:01:49]} 41. b4
{[%clk 0:00:50.8]} 41... a5 {[%clk 0:01:48.5]} 42. bxa5 {[%clk 0:00:44.8]} 42...
Rf8+ {[%clk 0:01:49]} 43. Ke2 {[%clk 0:00:44.5]} 43... Rxc5 {[%clk 0:01:49.6]}
44. Rd6+ {[%clk 0:00:42.6]} 44... Kf5 {[%clk 0:01:49.1]} 45. Rd7 {[%clk
0:00:41]} 45... Kg6 {[%clk 0:01:48.6]} 46. R1d6+ {[%clk 0:00:33.9]} 46... Rf6
{[%clk 0:01:48.2]} 47. Rxf6+ {[%clk 0:00:33.9]} 47... gxf6 {[%clk 0:01:49.1]}
48. Rxb7 {[%clk 0:00:34.2]} 48... Rxa5 {[%clk 0:01:50.3]} 49. Kf3 {[%clk
0:00:34.9]} 49... Ra2 {[%clk 0:01:49.9]} 50. Rc7 {[%clk 0:00:34.8]} 50... Rc2
{[%clk 0:01:50.4]} 51. Kg3 {[%clk 0:00:35.6]} 51... h5 {[%clk 0:01:51.2]} 52. h4
{[%clk 0:00:35.6]} 52... Kf5 {[%clk 0:01:52.2]} 53. Rh7 {[%clk 0:00:33.7]} 53...
Kg6 {[%clk 0:01:53.3]} 54. Rc7 {[%clk 0:00:33.9]} 54... c5 {[%clk 0:01:54.5]}
55. f3 {[%clk 0:00:32.8]} 55... c4 {[%clk 0:01:54.1]} 56. Kf4 {[%clk 0:00:30.2]}
56... Rh2 {[%clk 0:01:50.7]} 57. Kg3 {[%clk 0:00:29.6]} 57... Rc2 {[%clk
0:01:51.2]} 58. Kf4 {[%clk 0:00:30.1]} 58... Rc1 {[%clk 0:01:51.8]} 59. e4
{[%clk 0:00:29.1]} 59... c3 {[%clk 0:01:47.6]} 60. Rc6 {[%clk 0:00:28]} 60...
Kf7 {[%clk 0:01:39.4]} 61. Kf5 {[%clk 0:00:27.6]} 61... c2 {[%clk 0:01:37.6]}
62. Rxf6+ {[%clk 0:00:25.1]} 62... Ke7 {[%clk 0:01:38.9]} 63. Rc6 {[%clk
0:00:25.8]} 63... Rf1 {[%clk 0:01:35.8]} 64. Rxc2 {[%clk 0:00:25.8]} 64... Rxf3+
{[%clk 0:01:36.8]} 65. Kg5 {[%clk 0:00:22.6]} 65... Re3 {[%clk 0:01:35.9]} 66.
Rc4 {[%clk 0:00:23]} 66... Ke6 {[%clk 0:01:34.2]} 67. Kxh5 {[%clk 0:00:23.2]}
67... Rg3 {[%clk 0:01:35.4]} 68. Kh6 {[%clk 0:00:18.3]} 68... Ke5 {[%clk
0:01:36.6]} 69. h5 {[%clk 0:00:17.4]} 69... Rg1 {[%clk 0:01:37.7]} 70. Kh7
{[%clk 0:00:16.3]} 70... Kf6 {[%clk 0:01:37.6]} 71. Rc6+ {[%clk 0:00:14.6]}
71... Kf7 {[%clk 0:01:38.4]} 72. Rg6 {[%clk 0:00:13.6]} 72... Re1 {[%clk
0:01:38]} 73. Rg4 {[%clk 0:00:14.2]} 73... Rh1 {[%clk 0:01:35.4]} 74. h6 {[%clk
0:00:14.9]} 74... Rf1 {[%clk 0:01:36.1]} 75. e5 {[%clk 0:00:14.9]} 75... Rf5
{[%clk 0:01:33.5]} 76. e6+ {[%clk 0:00:14.4]} 76... Kxe6 {[%clk 0:01:33]} 77.
Kg8 {[%clk 0:00:14.1]} 77... Ke7 {[%clk 0:01:28.6]} 78. h7 {[%clk 0:00:13.7]}
78... Rf8+ {[%clk 0:01:29.6]} 79. Kg7 {[%clk 0:00:14.6]} 79... Rf7+ {[%clk
0:01:30.9]} 80. Kh6 {[%clk 0:00:15.3]} 80... Rf6+ {[%clk 0:01:32]} 81. Rg6
{[%clk 0:00:15.9]} 81... Rf8 {[%clk 0:01:31.4]} 82. Rg8 {[%clk 0:00:14.7]} 82...
Rf6+ {[%clk 0:01:32.3]} 83. Kg5 {[%clk 0:00:15.2]} 83... Kf7 {[%clk 0:01:24.6]}
84. h8=Q {[%clk 0:00:13.1]} 84... Rf1 {[%clk 0:01:24.7]} 85. Rf8+ {[%clk
0:00:12.4]} 85... Ke7 {[%clk 0:01:25.7]} 86. Rxf1 {[%clk 0:00:12.4]} 1-0

[Event "*** Titled Tuesday Blitz"]
[Site "Chess.com"]
[Date "2018.12.04"]
[Round "3"]
[White "Micki-taryan"]
[Black "VincentBlom"]
[Result "1-0"]
[WhiteElo "2899"]
[BlackElo "2500"]
[TimeControl "180+2"]
[EndTime "13:40:07 PST"]
[Termination "Micki-taryan won by resignation"]

1. e4 {[%clk 0:03:01.9]} 1... c6 {[%clk 0:02:59.6]} 2. Nc3 {[%clk 0:03:01.1]}
2... d5 {[%clk 0:02:57.2]} 3. Nf3 {[%clk 0:03:03]} 3... Bg4 {[%clk 0:02:57.6]}
4. h3 {[%clk 0:03:02.6]} 4... Bxf3 {[%clk 0:02:58.3]} 5. Qxf3 {[%clk 0:03:04.5]}
5... e6 {[%clk 0:03:00]} 6. d3 {[%clk 0:03:04.8]} 6... Nf6 {[%clk 0:02:58.7]} 7.
g3 {[%clk 0:03:05.4]} 7... Bb4 {[%clk 0:02:56.5]} 8. Bd2 {[%clk 0:03:00.5]} 8...
Qa5 {[%clk 0:02:27.3]} 9. Bg2 {[%clk 0:02:48.1]} 9... Nbd7 {[%clk 0:02:22.1]}
10. O-O {[%clk 0:02:48.3]} 10... d4 {[%clk 0:02:16.1]} 11. a3 {[%clk 0:02:49]}
11... Bxc3 {[%clk 0:02:17.4]} 12. bxc3 {[%clk 0:02:50]} 12... dxc3 {[%clk
0:02:18.6]} 13. Be1 {[%clk 0:02:51.3]} 13... e5 {[%clk 0:02:04.2]} 14. Qe3
{[%clk 0:02:46.6]} 14... O-O {[%clk 0:02:02.2]} 15. Rb1 {[%clk 0:02:40.6]} 15...
Qxa3 {[%clk 0:01:46.5]} 16. Rxb7 {[%clk 0:02:40.9]} 16... a5 {[%clk 0:01:44.5]}
17. Rb3 {[%clk 0:02:41.1]} 17... Qd6 {[%clk 0:01:42.6]} 18. Bxc3 {[%clk
0:02:41.1]} 18... a4 {[%clk 0:01:44.1]} 19. Rb2 {[%clk 0:02:40.2]} 19... a3
{[%clk 0:01:40]} 20. Ra2 {[%clk 0:02:41.4]} 20... Rfb8 {[%clk 0:01:41.5]} 21.
Rfa1 {[%clk 0:02:42.4]} 21... Rb7 {[%clk 0:01:39.7]} 22. Qc1 {[%clk 0:02:43.3]}
22... Rba7 {[%clk 0:01:39.9]} 23. Qe3 {[%clk 0:02:42.4]} 23... Ra4 {[%clk
0:01:40]} 24. Kh2 {[%clk 0:02:42]} 24... Ne8 {[%clk 0:01:32.9]} 25. Bd2 {[%clk
0:02:36.6]} 25... Nc7 {[%clk 0:01:33.7]} 26. f4 {[%clk 0:02:30]} 26... f6 {[%clk
0:01:31.9]} 27. fxe5 {[%clk 0:02:31]} 27... fxe5 {[%clk 0:01:33]} 28. Bc1 {[%clk
0:02:31.5]} 28... Nb5 {[%clk 0:01:33.8]} 29. Qd2 {[%clk 0:02:31.8]} 29... Nd4
{[%clk 0:00:40.6]} 30. Qc3 {[%clk 0:02:24.9]} 30... Nb5 {[%clk 0:00:41.5]} 31.
Qb3+ {[%clk 0:02:25.7]} 31... Kh8 {[%clk 0:00:41.4]} 32. c4 {[%clk 0:02:25.7]}
32... Nd4 {[%clk 0:00:41]} 33. Qc3 {[%clk 0:02:27.2]} 33... Qg6 {[%clk
0:00:36.7]} 34. Bxa3 {[%clk 0:02:26.7]} 34... Nf6 {[%clk 0:00:34.8]} 35. Qe1
{[%clk 0:02:16]} 35... h5 {[%clk 0:00:33]} 36. Qf2 {[%clk 0:02:10.7]} 36... Nb3
{[%clk 0:00:31.4]} 37. Rb1 {[%clk 0:02:04.9]} 37... Rxa3 {[%clk 0:00:32.5]} 38.
Rxa3 {[%clk 0:02:06.8]} 38... Rxa3 {[%clk 0:00:33.9]} 39. Qb2 {[%clk 0:02:08.7]}
39... Ra8 {[%clk 0:00:24.3]} 40. Qxb3 {[%clk 0:02:09.5]} 40... h4 {[%clk
0:00:25.5]} 41. gxh4 {[%clk 0:02:08.4]} 41... Nh5 {[%clk 0:00:26.3]} 42. Qd1
{[%clk 0:02:08]} 42... Qg3+ {[%clk 0:00:26.6]} 43. Kh1 {[%clk 0:02:08.3]} 43...
Nf4 {[%clk 0:00:25.5]} 44. Qg4 {[%clk 0:02:09.4]} 44... Qf2 {[%clk 0:00:19.6]}
45. Rf1 {[%clk 0:02:04.8]} 45... Qe3 {[%clk 0:00:18.6]} 46. Qf3 {[%clk
0:02:03.5]} 46... Qxd3 {[%clk 0:00:18.7]} 47. Qxd3 {[%clk 0:02:04.2]} 47... Nxd3
{[%clk 0:00:20.6]} 48. Bf3 {[%clk 0:02:03.3]} 48... Ra2 {[%clk 0:00:21.1]} 49.
Bg4 {[%clk 0:02:00.4]} 49... Nf4 {[%clk 0:00:21.9]} 50. Rd1 {[%clk 0:02:00.7]}
50... Rc2 {[%clk 0:00:23.4]} 51. h5 {[%clk 0:02:01.3]} 51... Kh7 {[%clk
0:00:24.4]} 52. Rd6 {[%clk 0:01:59.5]} 52... Rxc4 {[%clk 0:00:23.9]} 53. Bf5+
{[%clk 0:02:00.3]} 53... Kg8 {[%clk 0:00:25]} 54. Kh2 {[%clk 0:01:25.6]} 54...
Kf7 {[%clk 0:00:23.2]} 55. h6 {[%clk 0:01:23.1]} 55... gxh6 {[%clk 0:00:23.9]}
56. Rxh6 {[%clk 0:01:25]} 56... c5 {[%clk 0:00:23.5]} 57. Kg3 {[%clk 0:01:26]}
57... Rc1 {[%clk 0:00:23.6]} 58. Rc6 {[%clk 0:01:25.8]} 58... c4 {[%clk
0:00:23.7]} 59. Kh4 {[%clk 0:01:27.3]} 59... c3 {[%clk 0:00:25.1]} 60. Kg5
{[%clk 0:01:27.4]} 60... Rg1+ {[%clk 0:00:26.2]} 61. Bg4 {[%clk 0:01:28.4]}
61... Nxh3+ {[%clk 0:00:23.4]} 62. Kf5 {[%clk 0:01:29.6]} 62... Rg3 {[%clk
0:00:18.9]} 63. Rc7+ {[%clk 0:01:28.7]} 63... Kg8 {[%clk 0:00:20.2]} 64. Bd1
{[%clk 0:01:27]} 64... Rd3 {[%clk 0:00:16.8]} 65. Bb3+ {[%clk 0:01:27.2]} 65...
Kf8 {[%clk 0:00:17]} 66. Kxe5 {[%clk 0:01:29.1]} 66... Ke8 {[%clk 0:00:17]} 67.
Be6 {[%clk 0:01:26.9]} 67... Nf2 {[%clk 0:00:16.7]} 68. Rc8+ {[%clk 0:01:22.6]}
68... Rd8 {[%clk 0:00:17.2]} 69. Rxc3 {[%clk 0:01:23]} 69... Ra8 {[%clk
0:00:16.6]} 70. Rg3 {[%clk 0:01:21.7]} 70... Ra5+ {[%clk 0:00:14.7]} 71. Bd5
{[%clk 0:01:22.3]} 71... Nxe4 {[%clk 0:00:15.6]} 72. Kxe4 {[%clk 0:01:22.2]}
72... Kd7 {[%clk 0:00:17.2]} 73. Ke5 {[%clk 0:01:23.2]} 73... Kc7 {[%clk
0:00:18.8]} 74. Rb3 {[%clk 0:01:23.3]} 74... Ra6 {[%clk 0:00:19.7]} 75. Rb7+
{[%clk 0:01:24.1]} 75... Kc8 {[%clk 0:00:19.5]} 76. Rh7 {[%clk 0:01:24.8]} 76...
Rb6 {[%clk 0:00:19.7]} 77. Kd4 {[%clk 0:01:26.2]} 77... Rd6 {[%clk 0:00:19.9]}
78. Kc5 {[%clk 0:01:27.6]} 78... Rf6 {[%clk 0:00:20.9]} 79. Bc6 {[%clk
0:01:28.1]} 79... Kd8 {[%clk 0:00:22.6]} 80. Kb6 {[%clk 0:01:27.1]} 80... Rg6
{[%clk 0:00:21.6]} 81. Rd7+ {[%clk 0:01:27.8]} 81... Kc8 {[%clk 0:00:22.9]} 82.
Re7 {[%clk 0:01:28.9]} 82... Rg8 {[%clk 0:00:23.9]} 83. Re4 {[%clk 0:01:28.6]}
83... Kd8 {[%clk 0:00:24.2]} 84. Re5 {[%clk 0:01:22]} 84... Rh8 {[%clk 0:00:24]}
85. Kc5 {[%clk 0:01:23.2]} 85... Rh6 {[%clk 0:00:21.9]} 86. Re8+ {[%clk
0:01:22.8]} 86... Kc7 {[%clk 0:00:23.4]} 87. Re7+ {[%clk 0:01:24.7]} 87... Kd8
{[%clk 0:00:24.7]} 88. Rd7+ {[%clk 0:01:26.1]} 88... Kc8 {[%clk 0:00:26]} 89.
Kb6 {[%clk 0:01:27.1]} 89... Rg6 {[%clk 0:00:14]} 90. Re7 {[%clk 0:01:28]} 90...
Rg8 {[%clk 0:00:14.5]} 91. Ra7 {[%clk 0:01:29.3]} 1-0

[Event "*** Titled Tuesday Blitz"]
[Site "Chess.com"]
[Date "2018.12.04"]
[Round "3"]
[White "MikaelyanArman"]
[Black "Panchenko_Dmitry"]
[Result "0-1"]
[WhiteElo "2772"]
[BlackElo "2548"]
[TimeControl "180+2"]
[EndTime "13:40:24 PST"]
[Termination "Panchenko_Dmitry won on time"]

1. e4 {[%clk 0:03:01.9]} 1... e5 {[%clk 0:03:00.5]} 2. Nf3 {[%clk 0:03:02.6]}
2... Nf6 {[%clk 0:03:01.4]} 3. Nxe5 {[%clk 0:03:03.4]} 3... d6 {[%clk
0:03:02.4]} 4. Nf3 {[%clk 0:03:04.6]} 4... Nxe4 {[%clk 0:03:03.2]} 5. c4 {[%clk
0:03:05.6]} 5... Nc6 {[%clk 0:02:50.7]} 6. Nc3 {[%clk 0:03:05.1]} 6... Nxc3
{[%clk 0:02:50.2]} 7. dxc3 {[%clk 0:03:07]} 7... g6 {[%clk 0:02:50.6]} 8. Bg5
{[%clk 0:03:07.7]} 8... Be7 {[%clk 0:02:49.6]} 9. Be3 {[%clk 0:03:09.1]} 9...
Bf6 {[%clk 0:02:46.4]} 10. Be2 {[%clk 0:03:08.6]} 10... O-O {[%clk 0:02:45.4]}
11. O-O {[%clk 0:03:08]} 11... b6 {[%clk 0:02:44.9]} 12. Nd4 {[%clk 0:03:08.7]}
12... Nxd4 {[%clk 0:02:43.2]} 13. Bxd4 {[%clk 0:03:10.2]} 13... Bb7 {[%clk
0:02:43.1]} 14. Bf3 {[%clk 0:03:06.7]} 14... Bxf3 {[%clk 0:02:39.1]} 15. Qxf3
{[%clk 0:03:08.6]} 15... Bxd4 {[%clk 0:02:38.3]} 16. cxd4 {[%clk 0:03:10.5]}
16... Qg5 {[%clk 0:02:28.4]} 17. Qc6 {[%clk 0:03:07.2]} 17... Qd2 {[%clk
0:02:27.5]} 18. Qxc7 {[%clk 0:02:59.6]} 18... Qxd4 {[%clk 0:02:23.1]} 19. b3
{[%clk 0:02:56.4]} 19... Qc5 {[%clk 0:02:19.9]} 20. Qb7 {[%clk 0:02:53.9]} 20...
Rfb8 {[%clk 0:02:17]} 21. Qf3 {[%clk 0:02:53.3]} 21... b5 {[%clk 0:02:05.4]} 22.
Rac1 {[%clk 0:02:51.2]} 22... Rc8 {[%clk 0:01:54.2]} 23. h4 {[%clk 0:02:50.4]}
23... Rab8 {[%clk 0:01:51.8]} 24. g3 {[%clk 0:02:45.1]} 24... bxc4 {[%clk
0:01:48]} 25. Rxc4 {[%clk 0:02:47]} 25... Qe5 {[%clk 0:01:47.3]} 26. Re4 {[%clk
0:02:32.9]} 26... Qa5 {[%clk 0:01:28]} 27. Re7 {[%clk 0:02:30.7]} 27... Rf8
{[%clk 0:01:21.5]} 28. Re2 {[%clk 0:02:01]} 28... h5 {[%clk 0:01:21.1]} 29. Rfe1
{[%clk 0:02:00]} 29... Rb5 {[%clk 0:01:17.6]} 30. Qc6 {[%clk 0:01:55.4]} 30...
Qb6 {[%clk 0:01:09.7]} 31. Qd7 {[%clk 0:01:54]} 31... Rf5 {[%clk 0:01:08]} 32.
Rd1 {[%clk 0:01:46.4]} 32... Rf6 {[%clk 0:01:05.1]} 33. Qe7 {[%clk 0:01:40.9]}
33... Kg7 {[%clk 0:01:03.4]} 34. Re3 {[%clk 0:01:35.2]} 34... Rc8 {[%clk
0:00:59.4]} 35. Qe4 {[%clk 0:01:26.5]} 35... Kg8 {[%clk 0:00:27]} 36. Qd3 {[%clk
0:01:18.8]} 36... Qc5 {[%clk 0:00:21.4]} 37. Rf3 {[%clk 0:01:13.4]} 37... Rxf3
{[%clk 0:00:17.3]} 38. Qxf3 {[%clk 0:01:15.3]} 38... Re8 {[%clk 0:00:16.7]} 39.
Kg2 {[%clk 0:01:14.1]} 39... Re6 {[%clk 0:00:15.2]} 40. Rd5 {[%clk 0:01:12.5]}
40... Qc2 {[%clk 0:00:13.3]} 41. Ra5 {[%clk 0:01:11.2]} 41... Kg7 {[%clk
0:00:07.1]} 42. Rxa7 {[%clk 0:00:51.3]} 42... Rf6 {[%clk 0:00:07.9]} 43. Qe3
{[%clk 0:00:52.3]} 43... Qc6+ {[%clk 0:00:08.7]} 44. Kg1 {[%clk 0:00:53.6]}
44... Qd5 {[%clk 0:00:04.6]} 45. Re7 {[%clk 0:00:48.4]} 45... Qd1+ {[%clk
0:00:04.4]} 46. Qe1 {[%clk 0:00:36.6]} 46... Qc2 {[%clk 0:00:04.7]} 47. Re2
{[%clk 0:00:36.6]} 47... Qc5 {[%clk 0:00:05.2]} 48. Re3 {[%clk 0:00:32.8]} 48...
Qc2 {[%clk 0:00:05]} 49. Qe2 {[%clk 0:00:32.5]} 49... Qc1+ {[%clk 0:00:05.2]}
50. Kg2 {[%clk 0:00:31.4]} 50... Qc6+ {[%clk 0:00:05.7]} 51. Kh2 {[%clk
0:00:32.2]} 51... Qc5 {[%clk 0:00:05.1]} 52. a4 {[%clk 0:00:29.8]} 52... d5
{[%clk 0:00:06.1]} 53. Rf3 {[%clk 0:00:27.6]} 53... Re6 {[%clk 0:00:05.4]} 54.
Qd2 {[%clk 0:00:28.3]} 54... d4 {[%clk 0:00:05.8]} 55. Rd3 {[%clk 0:00:29]}
55... Rd6 {[%clk 0:00:06.7]} 56. a5 {[%clk 0:00:29.7]} 56... Rd5 {[%clk
0:00:04.1]} 57. a6 {[%clk 0:00:30.2]} 57... Qb6 {[%clk 0:00:05]} 58. Qa2 {[%clk
0:00:29.4]} 58... Ra5 {[%clk 0:00:04.9]} 59. Qb2 {[%clk 0:00:29.8]} 59... Qxa6
{[%clk 0:00:04.8]} 60. Qxd4+ {[%clk 0:00:30.1]} 60... Kh7 {[%clk 0:00:06.2]} 61.
Re3 {[%clk 0:00:28.3]} 61... Rf5 {[%clk 0:00:06]} 62. Re8 {[%clk 0:00:28.6]}
62... Rf6 {[%clk 0:00:04.4]} 63. b4 {[%clk 0:00:24.7]} 63... Qc6 {[%clk
0:00:04.4]} 64. Re2 {[%clk 0:00:19.6]} 64... Rf5 {[%clk 0:00:02.7]} 65. Rb2
{[%clk 0:00:18.3]} 65... Qb5 {[%clk 0:00:03]} 66. Rc2 {[%clk 0:00:14.4]} 66...
Rd5 {[%clk 0:00:03.6]} 67. Qf4 {[%clk 0:00:12.6]} 67... Rf5 {[%clk 0:00:04.4]}
68. Qe4 {[%clk 0:00:10.4]} 68... Qf1 {[%clk 0:00:04.5]} 69. Qe2 {[%clk
0:00:08.2]} 69... Qb1 {[%clk 0:00:04.5]} 70. Qd2 {[%clk 0:00:07.9]} 70... Qb3
{[%clk 0:00:04.2]} 71. Rc8 {[%clk 0:00:07.4]} 71... Qf3 {[%clk 0:00:04.2]} 72.
Kg1 {[%clk 0:00:07.4]} 72... Rd5 {[%clk 0:00:04.6]} 73. Rc3 {[%clk 0:00:02.2]}
73... Qe4 {[%clk 0:00:05.1]} 0-1

[Event "*** Titled Tuesday Blitz"]
[Site "Chess.com"]
[Date "2018.12.04"]
[Round "3"]
[White "SantoBlue"]
[Black "David_Paravyan"]
[Result "1/2-1/2"]
[WhiteElo "2715"]
[BlackElo "2831"]
[TimeControl "180+2"]
[EndTime "13:40:30 PST"]
[Termination "Game drawn by agreement"]

1. e4 {[%clk 0:03:01.9]} 1... e5 {[%clk 0:02:54.5]} 2. Nf3 {[%clk 0:03:01.7]}
2... Nf6 {[%clk 0:02:56]} 3. Nc3 {[%clk 0:03:00]} 3... Nc6 {[%clk 0:02:56.7]} 4.
Bb5 {[%clk 0:02:59.1]} 4... Nd4 {[%clk 0:02:55.4]} 5. O-O {[%clk 0:02:57.9]}
5... Nxb5 {[%clk 0:02:55.7]} 6. Nxb5 {[%clk 0:02:58.6]} 6... c6 {[%clk
0:02:57.2]} 7. Nc3 {[%clk 0:03:00]} 7... Qc7 {[%clk 0:02:57.1]} 8. d4 {[%clk
0:03:00.9]} 8... d6 {[%clk 0:02:58.4]} 9. Re1 {[%clk 0:03:01.4]} 9... Be7 {[%clk
0:02:58.9]} 10. a4 {[%clk 0:03:01.4]} 10... O-O {[%clk 0:02:58.2]} 11. h3 {[%clk
0:03:02]} 11... h6 {[%clk 0:02:59.1]} 12. b3 {[%clk 0:02:56.9]} 12... b6 {[%clk
0:02:59.9]} 13. Ba3 {[%clk 0:02:55.8]} 13... a5 {[%clk 0:02:46.2]} 14. Qd2
{[%clk 0:02:53.4]} 14... Ba6 {[%clk 0:02:41.2]} 15. Rad1 {[%clk 0:02:52.8]}
15... Rad8 {[%clk 0:02:41.6]} 16. Nh4 {[%clk 0:02:51.3]} 16... Bc8 {[%clk
0:02:36.7]} 17. Qe3 {[%clk 0:02:37.1]} 17... Rfe8 {[%clk 0:02:31.2]} 18. dxe5
{[%clk 0:02:32.5]} 18... dxe5 {[%clk 0:02:32.2]} 19. Bxe7 {[%clk 0:02:29]} 19...
Rxe7 {[%clk 0:02:34.1]} 20. Ne2 {[%clk 0:02:24.9]} 20... Red7 {[%clk 0:02:26.5]}
21. Rxd7 {[%clk 0:02:19.7]} 21... Bxd7 {[%clk 0:02:28.4]} 22. Ng3 {[%clk
0:02:18.3]} 22... Be6 {[%clk 0:02:26.7]} 23. Nhf5 {[%clk 0:02:14.3]} 23... Kh7
{[%clk 0:02:22.8]} 24. Kh2 {[%clk 0:02:11.5]} 24... c5 {[%clk 0:02:19.4]} 25. c4
{[%clk 0:02:06]} 25... Qd7 {[%clk 0:02:19]} 26. Qf3 {[%clk 0:02:01.2]} 26... Qd3
{[%clk 0:02:15.4]} 27. Qxd3 {[%clk 0:01:21.9]} 27... Rxd3 {[%clk 0:02:15.1]} 28.
Re3 {[%clk 0:01:22.9]} 28... Rd2 {[%clk 0:02:10.9]} 29. Kg1 {[%clk 0:00:56.6]}
29... Ng8 {[%clk 0:02:11.4]} 30. Kf1 {[%clk 0:00:53]} 30... g6 {[%clk
0:02:10.4]} 31. Nh4 {[%clk 0:00:54.5]} 31... f6 {[%clk 0:01:54.6]} 32. Nf3
{[%clk 0:00:55.4]} 32... Rd7 {[%clk 0:01:55.3]} 33. Ke2 {[%clk 0:00:47.9]} 33...
Ne7 {[%clk 0:01:56.2]} 34. Rd3 {[%clk 0:00:49.4]} 34... Nc6 {[%clk 0:01:56.4]}
35. Rxd7+ {[%clk 0:00:48.6]} 35... Bxd7 {[%clk 0:01:58.3]} 36. Kd3 {[%clk
0:00:34.7]} 36... Kg7 {[%clk 0:01:58.7]} 37. Nf1 {[%clk 0:00:34.8]} 37... Kf7
{[%clk 0:01:51.9]} 38. Ne3 {[%clk 0:00:35.5]} 38... Ke6 {[%clk 0:01:23.6]} 39.
Nd5 {[%clk 0:00:31.1]} 39... Nb4+ {[%clk 0:01:24.1]} 40. Kc3 {[%clk 0:00:31.8]}
40... Nxd5+ {[%clk 0:01:20.1]} 41. cxd5+ {[%clk 0:00:33.7]} 41... Kd6 {[%clk
0:01:13.3]} 42. Nd2 {[%clk 0:00:35.1]} 42... Kc7 {[%clk 0:01:00.5]} 43. Nc4
{[%clk 0:00:34]} 43... Bc8 {[%clk 0:00:49.5]} 44. Kd3 {[%clk 0:00:31.9]} 44...
Bd7 {[%clk 0:00:50.4]} 45. Ke3 {[%clk 0:00:31.6]} 45... g5 {[%clk 0:00:39.3]}
46. Kf3 {[%clk 0:00:22]} 46... h5 {[%clk 0:00:35.9]} 47. Kg3 {[%clk 0:00:18.3]}
47... Bc8 {[%clk 0:00:30]} 48. h4 {[%clk 0:00:18.1]} 48... g4 {[%clk 0:00:23.8]}
49. f4 {[%clk 0:00:18.6]} 49... gxf3 {[%clk 0:00:20.2]} 50. gxf3 {[%clk
0:00:19.5]} 50... Ba6 {[%clk 0:00:21.3]} 51. Ne3 {[%clk 0:00:16.7]} 51... b5
{[%clk 0:00:20.8]} 52. axb5 {[%clk 0:00:16.5]} 52... Bxb5 {[%clk 0:00:22.7]} 53.
f4 {[%clk 0:00:18.4]} 53... Be2 {[%clk 0:00:16.9]} 54. fxe5 {[%clk 0:00:19.4]}
54... fxe5 {[%clk 0:00:18.8]} 55. Kf2 {[%clk 0:00:21]} 55... Bd3 {[%clk
0:00:17.9]} 56. Kf3 {[%clk 0:00:19]} 56... Kd7 {[%clk 0:00:14.8]} 57. Nf5 {[%clk
0:00:07.6]} 57... c4 {[%clk 0:00:09.5]} 58. Ke3 {[%clk 0:00:06.4]} 58... Bxe4
{[%clk 0:00:05.3]} 59. Kxe4 {[%clk 0:00:06.5]} 59... cxb3 {[%clk 0:00:06.8]} 60.
Kd3 {[%clk 0:00:08.1]} 60... a4 {[%clk 0:00:08.2]} 61. Kc3 {[%clk 0:00:08.5]}
61... e4 {[%clk 0:00:09.6]} 62. Kb2 {[%clk 0:00:08.8]} 62... Kc7 {[%clk
0:00:10.9]} 63. Ka3 {[%clk 0:00:09.9]} 63... Kb6 {[%clk 0:00:09.6]} 64. Kb2
{[%clk 0:00:10.5]} 64... Kc5 {[%clk 0:00:10.7]} 65. d6 {[%clk 0:00:11.8]} 65...
Kc6 {[%clk 0:00:12.1]} 66. Kc3 {[%clk 0:00:13]} 66... Kd7 {[%clk 0:00:11.5]} 67.
Kb2 {[%clk 0:00:14]} 67... Ke6 {[%clk 0:00:12]} 68. Ka3 {[%clk 0:00:14.7]} 68...
Kd7 {[%clk 0:00:10.5]} 69. Kb2 {[%clk 0:00:14.9]} 69... e3 {[%clk 0:00:11.9]}
70. Nxe3 {[%clk 0:00:15.2]} 70... Kxd6 {[%clk 0:00:13.3]} 71. Nf5+ {[%clk
0:00:12.1]} 71... Ke5 {[%clk 0:00:13.2]} 72. Ng3 {[%clk 0:00:07.5]} 72... Kf4
{[%clk 0:00:13]} 73. Nxh5+ {[%clk 0:00:09.1]} 73... Kg4 {[%clk 0:00:14.5]} 74.
Nf6+ {[%clk 0:00:10.5]} 74... Kxh4 {[%clk 0:00:16]} 75. Nd7 {[%clk 0:00:12.1]}
75... a3+ {[%clk 0:00:16.3]} 1/2-1/2